bitfinex/quotes_ETHUSD_20240719
["timestamp","ask_amount","ask_price","bid_price","bid_amount"]
[1721380038343,0.31035914,3411.7,3411.6,3.48117]
[1721380038557,0.31035914,3411.7,3411.6,4.122413]
[1721380038908,0.31035914,3411.7,3411.6,1.191243]
[1721380039104,0.31035914,3411.7,3411.6,3.48117]
[1721380040446,0.31035914,3411.7,3411.6,0.55]
[1721380040641,0.31035914,3411.7,3411.5,3.0]
[1721380041810,1e-08,3411.7,3411.5,3.0]
[1721380042327,1e-08,3411.7,3411.3,3.0]
[1721380042517,1e-08,3411.7,3411.4,0.607549]
[1721380043326,1e-08,3411.7,3411.4,3.538889]
[1721380043640,1e-08,3411.7,3411.5,3.0]
[1721380044024,1e-08,3411.7,3411.4,0.607549]
[1721380044225,1e-08,3411.7,3411.3,3.0]
[1721380044420,1e-08,3411.7,3411.2,5.93151]
[1721380044625,1e-08,3411.7,3411.3,2.93143]
[1721380045256,1e-08,3411.7,3411.1,0.144]
[1721380045472,2.93131,3411.5,3411.1,0.144]
[1721380045615,0.538501,3411.4,3411.1,0.144]
[1721380045810,2.93151,3411.2,3411.1,0.144]
[1721380047223,5.86276,3411.4,3411.1,0.144]
[1721380047437,2.4537,3411.6,3411.1,0.144]
[1721380047438,2.93151,3411.2,3411.1,0.144]
[1721380047610,2.93126,3411.5,3411.1,0.144]
[1721380047611,2.93141,3411.4,3411.1,0.144]
[1721380047819,2.93143,3411.3,3411.1,0.144]
[1721380048822,2.93151,3411.2,3411.1,0.144]
[1721380049819,5.86302,3411.2,3411.1,0.144]
[1721380050416,11.23053,3411.2,3411.1,0.144]
[1721380051442,20.53104,3411.2,3411.1,0.144]
[1721380053215,17.59953,3411.2,3411.1,0.144]
[1721380053528,19.19208178,3411.2,3411.1,0.144]
[1721380053726,15.82308178,3411.2,3411.1,0.144]
[1721380054155,5.36751,3411.2,3411.1,0.144]
[1721380054351,2.93151,3411.2,3411.1,0.144]
[1721380054655,2.3828,3411.6,3411.1,0.144]
[1721380054813,2.93135,3411.4,3411.1,0.144]
[1721380055448,2.93135,3411.4,3411.1,0.244]
[1721380056159,2.9314,3411.4,3411.1,0.244]
[1721380057653,2.93145,3411.3,3411.1,0.244]
[1721380057965,2.93151,3411.2,3411.1,0.244]
[1721380058167,5.86302,3411.2,3411.1,0.244]
[1721380058451,2.93151,3411.2,3411.1,0.244]
[1721380059037,2.93136,3411.4,3411.1,0.244]
[1721380059423,2.93117001,3411.7,3411.1,0.244]
[1721380059623,2.93132,3411.5,3411.1,0.51425]
[1721380059832,1e-08,3411.7,3411.1,3.44584]
[1721380060723,2.93113001,3411.7,3411.1,0.51425]
[1721380062345,1e-08,3411.7,3411.2,2.93144]
[1721380062673,1e-08,3411.7,3411.3,0.637737]
[1721380063023,1e-08,3411.7,3411.3,3.569157]
[1721380064439,1e-08,3411.7,3411.6,5.86234]
[1721380064981,1e-08,3411.7,3411.6,6.48117]
[1721380065184,1e-08,3411.7,3411.6,3.0]
[1721380065474,1e-08,3411.7,3411.4,2.4585]
[1721380065475,1e-08,3411.7,3411.4,2.3567]
[1721380066380,1e-08,3411.7,3411.6,2.93117]
[1721380066542,1e-08,3411.7,3411.6,5.86234]
[1721380066955,1e-08,3411.7,3411.6,6.41234]
[1721380067833,1e-08,3411.7,3411.6,9.41234]
[1721380068036,1e-08,3411.7,3411.6,10.882383]
[1721380071779,1e-08,3411.7,3411.6,4.401213]
[1721380071980,1e-08,3411.7,3411.2,2.93145]
[1721380072288,1e-08,3411.7,3411.5,2.93126]
[1721380072671,1e-08,3411.7,3411.6,2.93117]
[1721380074562,1e-08,3411.7,3411.4,2.93128]
[1721380074763,1e-08,3411.7,3411.3,2.9314]
[1721380074996,1e-08,3411.7,3411.4,2.93134]
[1721380075375,1e-08,3411.7,3411.5,2.93126]
[1721380075580,1e-08,3411.7,3411.6,2.93117]
[1721380075780,1e-08,3411.7,3411.5,2.93126]
[1721380075975,1e-08,3411.7,3411.6,5.86234]
[1721380076209,1e-08,3411.7,3411.6,6.5396439]
[1721380076510,1e-08,3411.7,3411.6,3.6084739]
[1721380078606,1e-08,3411.7,3411.4,2.93131]
[1721380079217,1e-08,3411.7,3411.3,0.910699]
[1721380079503,1e-08,3411.7,3411.4,2.93134]
[1721380080279,1e-08,3411.7,3411.5,2.93125]
[1721380080516,1e-08,3411.7,3411.6,2.93117]
[1721380080880,1e-08,3411.7,3411.6,3.9084969]
[1721380082216,1e-08,3411.7,3411.6,0.9773269]
[1721380082382,1e-08,3411.7,3411.6,3.9084969]
[1721380083600,1e-08,3411.7,3411.6,6.8396669]
[1721380085126,1e-08,3411.7,3411.6,7.3896669]
[1721380085294,1e-08,3411.7,3411.6,9.8393669]
[1721380087095,0.005,3413.3,3413.2,2.9298]
[1721380087609,0.005,3413.3,3413.0,2.92996]
[1721380088694,0.005,3413.3,3413.1,2.92988]
[1721380088889,0.005,3413.3,3412.5,2.93035]
[1721380089094,0.005,3413.3,3413.2,2.9298]
[1721380089294,0.005,3413.3,3413.2,6.15258]
[1721380092927,0.005,3413.3,3413.2,9.08238]
[1721380093100,0.005,3413.3,3413.2,15.72538]
[1721380093304,0.1469047,3413.7,3413.6,5.8589]
[1721380093509,0.1469047,3413.7,3413.6,11.78835]
[1721380093718,0.1469047,3413.7,3413.6,14.079285]
[1721380094350,0.005,3414.7,3414.5,8.95036]
[1721380094509,0.005,3414.7,3414.5,11.93536]
[1721380095343,0.005,3414.7,3414.5,14.86404]
[1721380095549,0.005,3414.7,3414.5,19.674044]
[1721380096134,0.005,3414.7,3414.5,13.652364]
[1721380096606,0.005,3414.7,3414.5,8.195684]
[1721380096805,0.005,3414.7,3414.3,2.92884]
[1721380097002,0.005,3414.7,3414.0,5.9291]
[1721380097230,0.005,3414.7,3414.2,2.92892]
[1721380097473,0.005,3414.7,3413.8,2.92928]
[1721380097653,0.005,3414.7,3414.4,2.92871]
[1721380097866,0.005,3414.7,3414.2,2.92893]
[1721380098141,0.005,3414.7,3414.1,2.92897]
[1721380098344,0.005,3414.7,3414.0,2.9291]
[1721380098555,0.005,3414.7,3413.9,2.92919]
[1721380098733,0.005,3414.7,3413.9,0.9534525]
[1721380099237,2.93367,3414.6,3413.8,2.92924]
[1721380099557,2.92885,3414.4,3413.5,2.92953]
[1721380099719,2.92918,3414.0,3413.2,0.29298]
[1721380099926,2.92901,3414.2,3413.2,0.29298]
[1721380100116,2.4454,3414.4,3413.2,0.29298]
[1721380100312,2.92895,3414.2,3413.2,2.92978]
[1721380100663,2.92929,3413.8,3413.0,2.92993]
[1721380100947,2.92941,3413.7,3412.9,2.93003]
[1721380101325,2.92927,3413.9,3413.0,2.92995]
[1721380101528,2.92927,3413.9,3413.2,2.92979]
[1721380101763,2.92943,3413.7,3412.8,2.93012]
[1721380102061,2.983816,3414.4,3412.6,2.9303]
[1721380102062,2.92933,3413.8,3412.9,3.516092]
[1721380102261,2.92933,3413.8,3413.0,3.0]
[1721380102487,2.92921,3413.9,3413.0,3.0]
[1721380102625,2.92945,3413.6,3412.9,0.586042]
[1721380102825,2.9295,3413.6,3412.5,2.93039]
[1721380103132,2.92955,3413.5,3412.3,2.93055]
[1721380103332,2.92994,3413.1,3412.3,2.93055]
[1721380103551,2.92994,3413.1,3412.0,2.93082]
[1721380103552,2.93004,3413.0,3412.0,2.93082]
[1721380104030,2.92978,3413.3,3412.5,2.93038]
[1721380104266,2.92978,3413.3,3412.6,0.586094]
[1721380105840,5.29784,3413.5,3411.8,6.02395]
[1721380105841,2.93003,3413.0,3412.1,2.93072]
[1721380106043,2.93007,3412.9,3412.2,0.55]
[1721380106251,2.9298,3413.2,3412.2,0.55]
[1721380106575,2.9298,3413.2,3411.8,3.0]
[1721380106576,2.9298,3413.2,3412.4,2.93048]
[1721380106736,2.9298,3413.2,3412.4,3.5166]
[1721380107133,2.92963,3413.4,3412.4,3.5166]
[1721380107361,2.92963,3413.4,3412.4,2.93048]
[1721380107764,2.92963,3413.4,3412.6,2.9303]
[1721380108079,2.3683,3413.5,3412.6,2.9303]
[1721380108080,2.92972,3413.3,3412.6,2.9303]
[1721380108428,2.92972,3413.3,3412.4,2.93048]
[1721380108633,2.92972,3413.3,3412.3,2.93056]
[1721380108934,2.92989,3413.1,3412.4,0.293056]
[1721380109134,2.93006,3412.9,3412.1,2.93074]
[1721380109747,2.92971,3413.4,3412.0,0.05860349]
[1721380109952,2.92971,3413.4,3412.7,2.93022]
[1721380110557,2.92971,3413.4,3412.7,2.98881735]
[1721380110772,2.92971,3413.4,3412.8,0.05859718]
[1721380110957,2.92946,3413.6,3412.7,2.93022]
[1721380111153,3.222406,3413.6,3412.7,2.93022]
[1721380111978,2.92967,3413.4,3412.7,2.93022]
[1721380112876,2.92929,3413.8,3412.8,0.05859576]
[1721380113085,2.9292,3413.9,3412.7,2.93019]
[1721380113396,2.9292,3413.9,3412.3,5.98914283]
[1721380113397,2.92954,3413.5,3412.8,3.223149]
[1721380115177,2.92938,3413.7,3412.9,0.05859337]
[1721380115399,2.92938,3413.7,3413.0,2.9299]
[1721380115603,2.92946,3413.6,3413.0,2.9299]
[1721380115894,2.9292,3413.9,3413.0,2.9299]
[1721380115895,2.92937,3413.7,3413.0,0.62116424]
[1721380116400,2.92937,3413.7,3413.0,2.9299]
[1721380116563,2.92937,3413.7,3413.0,2.98849298]
[1721380117303,2.4256,3413.6,3413.0,0.05859298]
[1721380117508,2.92995,3413.1,3411.6,3.151603]
[1721380117659,2.92995,3413.1,3412.2,2.93064]
[1721380117865,2.92995,3413.1,3412.4,2.93046]
[1721380119401,2.4256,3413.6,3412.5,2.93039]
[1721380119402,2.9298,3413.2,3412.5,2.93039]
[1721380119608,2.9298,3413.2,3412.6,0.586095]
[1721380120784,2.4256,3413.6,3412.6,0.586095]
[1721380121019,2.93014,3412.8,3412.2,3.0]
[1721380121617,2.93014,3412.8,3412.0,3.0]
[1721380122214,2.93014,3412.8,3412.1,2.93074]
[1721380122390,2.93014,3412.8,3412.2,3.0]
[1721380122593,2.93013,3412.9,3412.2,3.0]
[1721380122798,2.93028,3412.7,3412.2,3.0]
[1721380122997,4.9526,3413.6,3411.8,5.93099]
[1721380122998,2.93035,3412.6,3411.8,5.93099]
[1721380123400,2.93041,3412.5,3411.8,5.93099]
[1721380123604,2.93041,3412.5,3411.6,1.1239802]
[1721380123846,2.93058,3412.3,3411.6,4.0550902]
[1721380124007,5.86087,3412.5,3411.7,3.86472102]
[1721380124213,2.93026,3412.7,3411.9,2.93091]
[1721380124628,2.93026,3412.7,3412.0,2.93083]
[1721380124997,2.4885,3413.0,3412.3,2.93055]
[1721380125224,2.92991,3413.1,3412.3,2.93055]
[1721380125225,5.85986,3413.1,3412.3,2.93055]
[1721380125437,2.92991,3413.1,3412.4,0.293055]
[1721380125948,2.92991,3413.1,3412.4,3.223525]
[1721380126313,2.92991,3413.1,3412.5,2.93039]
[1721380126537,2.92991,3413.1,3412.4,0.293055]
[1721380126538,2.92974,3413.3,3412.6,2.93027]
[1721380126735,2.4262,3413.4,3412.6,2.93027]
[1721380126736,2.9298,3413.2,3412.6,2.93027]
[1721380126925,2.9298,3413.2,3412.6,3.5456565]
[1721380127341,2.4262,3413.4,3412.6,3.5456565]
[1721380127342,2.92989,3413.1,3412.6,0.6153865]
[1721380127761,2.92959,3413.5,3412.6,3.5456865]
[1721380128428,2.92972,3413.3,3412.6,3.5456865]
[1721380128763,2.4262,3414.2,3412.9,2.93005]
[1721380128764,2.92946,3413.6,3412.9,2.93005]
[1721380129122,2.92927,3413.9,3413.0,2.92995]
[1721380129343,2.92945,3413.7,3413.0,2.92995]
[1721380129745,2.92927,3413.9,3413.0,2.92995]
[1721380129746,2.92927,3413.9,3413.1,2.92982]
[1721380129920,2.92928,3413.8,3413.2,0.585977]
[1721380130261,2.92928,3413.8,3413.1,2.92982]
[1721380130262,2.92937,3413.7,3412.9,2.93]
[1721380130575,2.92937,3413.7,3413.0,2.92997]
[1721380130921,2.4262,3414.2,3413.0,2.92992]
[1721380130922,2.92913,3414.0,3413.0,2.92992]
[1721380131245,2.92913,3414.0,3413.3,2.92971]
[1721380131755,2.92913,3414.0,3413.1,0.05858743]
[1721380131756,2.92891,3414.3,3413.6,2.92941]
[1721380132635,2.2673,3414.6,3413.6,2.92941]
[1721380132924,2.92869,3414.5,3413.6,2.92941]
[1721380133562,2.92892,3414.3,3413.4,2.92961]
[1721380133893,2.92892,3414.3,3413.5,3.0]
[1721380134166,2.92892,3414.3,3413.5,6.815458]
[1721380134518,2.2673,3414.6,3413.5,3.885938]
[1721380134519,2.92894,3414.2,3413.5,3.885938]
[1721380134723,2.2673,3414.6,3413.5,3.0]
[1721380134724,2.92928,3413.9,3413.5,3.0]
[1721380134925,2.92928,3413.9,3413.1,5.2642]
[1721380135220,2.92928,3413.9,3413.2,2.9298]
[1721380135442,2.92928,3413.9,3413.3,3.0]
[1721380135660,2.92928,3413.9,3413.3,4.412397]
[1721380136325,2.92878,3414.4,3413.6,2.9294]
[1721380136969,2.92886,3414.3,3413.6,2.9294]
[1721380137163,2.92886,3414.3,3413.7,2.92936]
[1721380138152,2.92895,3414.2,3413.5,2.92948]
[1721380138468,2.92895,3414.2,3413.6,3.6636377]
[1721380139479,2.92883,3414.4,3413.6,3.6636377]
[1721380139649,2.92886,3414.3,3413.6,3.6636377]
[1721380140276,2.92895,3414.2,3413.6,0.7341877]
[1721380140480,2.92916,3414.0,3413.6,0.7341877]
[1721380140633,2.92929,3413.8,3413.3,4.412397]
[1721380140837,2.92916,3414.0,3413.3,1.412397]
[1721380141156,2.92904,3414.1,3413.4,2.92958]
[1721380141481,2.92904,3414.1,3413.5,4.0271757]
[1721380141645,2.92904,3414.1,3413.5,3.9567157]
[1721380142038,2.92904,3414.1,3413.5,1.0271757]
[1721380142773,2.92912,3414.0,3413.5,4.0271757]
[1721380142995,2.92888,3414.3,3413.1,2.2642]
[1721380143141,2.92923,3413.9,3413.1,2.2642]
[1721380143458,2.92923,3413.9,3413.1,5.19401]
[1721380143668,2.92929,3413.8,3413.1,5.19401]
[1721380143986,2.92929,3413.8,3413.2,1.112406]
[1721380144678,2.92937,3413.7,3413.2,1.112406]
[1721380144983,2.92946,3413.6,3413.2,1.112406]
[1721380145141,2.92937,3413.7,3413.2,1.112406]
[1721380145342,2.92959,3413.5,3412.9,3.0]
[1721380145555,2.3616,3413.8,3412.7,3.67691015]
[1721380145751,2.3616,3413.8,3412.1,5.41978]
[1721380145752,2.93006,3412.9,3412.1,5.41978]
[1721380146801,2.93014,3412.8,3412.1,5.41978]
[1721380147094,4.8886,3413.8,3411.9,2.93089]
[1721380147095,2.93023,3412.7,3411.9,2.93089]
[1721380147414,2.93007,3412.9,3411.6,2.4891]
[1721380147415,2.93048,3412.4,3411.6,2.4891]
[1721380147709,5.2917,3412.9,3411.3,2.93141]
[1721380147710,2.93058,3412.3,3411.3,2.93141]
[1721380147884,2.93058,3412.3,3411.4,1.58521]
[1721380148081,2.93093,3411.9,3411.4,1.58521]
[1721380148286,2.93093,3411.9,3411.2,2.4891]
[1721380148512,2.93106,3411.8,3411.1,0.1]
[1721380148962,2.93109,3411.7,3411.1,0.1]
[1721380149291,2.93109,3411.7,3411.1,3.1]
[1721380150227,2.93082,3412.1,3411.3,2.93143]
[1721380150496,2.93058,3412.3,3411.4,5.93133]
[1721380150706,2.93058,3412.3,3411.5,2.9312]
[1721380150872,2.9304,3412.5,3411.8,2.93099]
[1721380151255,2.3616,3412.9,3412.0,2.93082]
[1721380151256,5.29166,3412.9,3412.0,2.93082]
[1721380151587,6.29926,3413.9,3412.2,2.93065]
[1721380151588,2.3616,3413.4,3412.2,2.93065]
[1721380151770,2.93007,3412.9,3412.3,0.55]
[1721380151973,2.93007,3412.9,3412.1,3.48074]
[1721380152175,2.3616,3413.4,3412.1,3.48074]
[1721380152176,2.93025,3412.7,3412.2,0.348074]
[1721380152357,2.93067,3412.2,3411.8,3.0]
[1721380152558,2.93092,3411.9,3411.4,3.0]
[1721380152798,2.93075,3412.1,3411.3,0.896303]
[1721380152799,2.93088,3412.0,3411.3,0.896303]
[1721380152999,2.93088,3412.0,3411.2,3.0]
[1721380153161,2.93088,3412.0,3411.2,2.93151]
[1721380153499,2.93088,3412.0,3411.3,3.0]
[1721380154074,2.93088,3412.0,3411.4,0.55]
[1721380155410,2.93092,3411.9,3411.4,0.55]
[1721380155616,2.93066,3412.2,3411.3,3.0]
[1721380155617,2.93071,3412.2,3411.3,3.0]
[1721380155778,2.93103,3411.8,3411.1,0.1]
[1721380156978,2.93103,3411.8,3411.1,6.0316]
[1721380157604,2.93103,3411.8,3411.1,8.9632]
[1721380157917,2.93066,3412.2,3411.1,3.1]
[1721380158084,2.93057,3412.3,3411.6,2.93117]
[1721380159181,5.292,3412.5,3411.8,2.93099]
[1721380159531,2.93049,3412.4,3411.6,2.93111]
[1721380159823,2.93049,3412.4,3411.5,2.93125]
[1721380159824,2.93049,3412.4,3411.7,0.586236]
[1721380160237,2.93049,3412.4,3411.7,3.517306]
[1721380161222,2.93057,3412.3,3411.7,3.517306]
[1721380161635,2.9304,3412.5,3411.7,3.517306]
[1721380161844,2.93015,3412.8,3412.1,2.93068]
[1721380162002,2.93025,3412.7,3411.8,2.93098]
[1721380162201,5.42542,3412.9,3411.9,3.48091]
[1721380162438,5.42542,3412.9,3412.2,2.93065]
[1721380163841,2.93015,3412.8,3412.0,3.278911]
[1721380164037,2.93023,3412.7,3412.1,0.55]
[1721380164237,2.93023,3412.7,3412.1,3.48074]
[1721380164636,2.4953,3412.9,3412.1,3.48074]
[1721380164941,2.93011,3412.9,3412.2,2.93065]
[1721380165645,2.92989,3413.1,3412.4,2.93048]
[1721380166935,2.92989,3413.1,3412.5,2.93039]
[1721380167140,2.9298,3413.2,3412.5,2.93039]
[1721380168609,2.9298,3413.2,3412.6,2.93031]
[1721380169148,2.92963,3413.4,3412.7,2.93022]
[1721380169639,2.92963,3413.4,3412.8,2.93013]
[1721380170001,2.92963,3413.4,3412.6,2.93025]
[1721380170252,2.92963,3413.4,3412.6,3.757612]
[1721380170739,2.92963,3413.4,3412.7,2.93022]
[1721380171508,2.92963,3413.4,3412.8,2.93012]
[1721380171847,2.92946,3413.6,3412.9,2.92999]
[1721380174308,2.92954,3413.5,3412.7,2.93022]
[1721380174524,2.92968,3413.4,3412.7,0.3757582]
[1721380174728,2.92968,3413.4,3412.5,2.93038]
[1721380174729,2.9298,3413.2,3412.6,2.9303]
[1721380176319,2.9298,3413.2,3412.4,2.93042]
[1721380176530,2.9298,3413.2,3412.5,6.48038]
[1721380176732,2.9298,3413.2,3412.5,7.421471]
[1721380178565,2.92989,3413.1,3412.5,7.421471]
[1721380178746,2.4076,3413.7,3412.1,3.3136131]
[1721380178963,2.4076,3413.7,3411.9,5.42005]
[1721380178964,2.93028,3412.7,3411.9,5.42005]
[1721380179480,2.93028,3412.7,3411.9,2.93085]
[1721380179837,2.93028,3412.7,3412.0,2.93083]
[1721380180550,2.4136,3412.8,3412.0,2.93083]
[1721380180551,2.93031,3412.6,3412.0,2.93083]
[1721380180763,2.9304,3412.5,3412.0,0.91702197]
[1721380182036,2.93031,3412.6,3411.8,10.33093]
[1721380182255,2.93054,3412.4,3411.6,2.93115]
[1721380182452,2.93049,3412.4,3411.7,3.55]
[1721380182883,2.93057,3412.3,3411.7,3.55]
[1721380183884,2.93074,3412.2,3411.7,3.0]
[1721380184114,2.93074,3412.2,3411.5,3.0]
[1721380184499,2.93074,3412.2,3411.4,2.93132]
[1721380184972,2.93075,3412.1,3411.5,0.55]
[1721380187722,2.93075,3412.1,3411.4,2.93132]
[1721380187871,0.534363,3412.7,3411.1,0.1]
[1721380187872,3.025833,3412.0,3411.1,0.1]
[1721380188077,2.93109,3411.7,3411.2,0.55]
[1721380189426,2.931,3411.8,3411.2,0.55]
[1721380190690,2.931,3411.8,3411.2,3.48151]
[1721380190891,2.931,3411.8,3411.3,0.658151]
[1721380192476,2.93112,3411.7,3411.3,0.658151]
[1721380193078,2.93112,3411.7,3411.1,0.1]
[1721380193489,2.93118,3411.6,3411.1,0.1]
[1721380193975,2.9311,3411.7,3411.1,0.1]
[1721380194219,2.93119,3411.6,3411.1,3.1]
[1721380194509,2.93094,3411.9,3411.1,3.1]
[1721380194510,2.93094,3411.9,3411.1,0.1]
[1721380194711,2.93094,3411.9,3411.1,3.996354]
[1721380195359,2.93109,3411.7,3411.1,3.996354]
[1721380195528,2.526,3412.6,3411.2,0.55]
[1721380195529,2.4638,3412.4,3411.2,0.55]
[1721380195825,2.93098,3411.9,3411.2,0.55]
[1721380195988,2.4638,3412.4,3411.3,1.0409554]
[1721380195989,2.93057,3412.3,3411.3,1.0409554]
[1721380196315,2.93066,3412.2,3411.4,0.55]
[1721380196524,2.93066,3412.2,3411.6,2.93116]
[1721380196735,5.39429,3412.4,3411.6,2.93116]
[1721380197030,5.45597,3413.0,3411.4,0.60861908]
[1721380197031,2.93067,3412.2,3411.5,2.9312]
[1721380197642,2.93075,3412.1,3411.5,2.9312]
[1721380197786,2.93075,3412.1,3411.5,0.871538]
[1721380197994,2.931,3411.8,3411.1,3.03153]
[1721380198195,2.931,3411.8,3411.2,3.4815]
[1721380198505,2.931,3411.8,3411.2,2.9315]
[1721380198735,2.931,3411.8,3411.1,3.03159]
[1721380199116,2.93112,3411.7,3411.1,0.1]
[1721380199308,2.93125,3411.6,3411.1,0.1]
[1721380199641,2.931,3411.8,3411.1,0.1]
[1721380200380,2.93121,3411.6,3411.1,0.1]
[1721380200657,2.93128,3411.5,3411.1,0.1]
[1721380201340,2.93134,3411.4,3411.1,0.1]
[1721380201497,2.9315,3411.3,3411.1,0.1]
[1721380201702,2.93121,3411.6,3411.1,0.1]
[1721380202531,2.93109,3411.7,3411.1,0.1]
[1721380202740,2.93109,3411.7,3411.1,3.0316]
[1721380202992,2.93091,3411.9,3411.1,3.0316]
[1721380203272,2.93091,3411.9,3411.1,0.696337]
[1721380203475,5.39647,3412.1,3411.1,0.696337]
[1721380203476,2.931,3411.8,3411.2,2.93151]
[1721380205470,2.93109,3411.7,3411.1,0.1]
[1721380205836,2.93085,3412.0,3411.1,3.03155]
[1721380206083,2.93085,3412.0,3411.2,2.93151]
[1721380206580,2.93106,3411.8,3411.2,2.93151]
[1721380208574,2.93106,3411.8,3411.1,0.1]
[1721380208775,2.93106,3411.8,3411.1,3.03154]
[1721380212076,2.93106,3411.8,3411.2,2.93151]
[1721380212484,2.93085,3412.0,3411.3,2.93143]
[1721380213578,2.93094,3411.9,3411.3,2.93143]
[1721380218902,2.931,3411.8,3411.1,5.96312]
[1721380219190,2.931,3411.8,3411.2,2.93151]
[1721380222185,3.984,3411.8,3411.1,0.1]
[1721380222387,6.91508,3411.8,3411.1,0.1]
[1721380222591,2.9311,3411.7,3411.1,0.1]
[1721380222758,3.9841,3411.7,3411.1,3.03158]
[1721380223273,2.9311,3411.7,3411.1,3.627872]
[1721380224458,2.9311,3411.7,3411.1,3.03154]
[1721380225821,3.9841,3411.7,3411.1,3.03154]
[1721380226610,2.9311,3411.7,3411.1,3.03154]
[1721380226818,3.9841,3411.7,3411.1,3.03154]
[1721380227386,6.91527,3411.7,3411.1,3.03154]
[1721380227624,5.86227,3411.7,3411.1,3.03154]
[1721380227799,1.053,3411.6,3411.1,0.1]
[1721380227999,2.9314,3411.4,3411.1,0.1]
[1721380228404,1.053,3411.2,3411.1,0.1]
[1721380228726,3.98451,3411.2,3411.1,0.1]
[1721380229024,7.850221,3411.2,3411.1,0.1]
[1721380229627,6.797221,3411.2,3411.1,0.1]
[1721380229788,2.93151,3411.2,3411.1,0.1]
[1721380229993,2.93136,3411.4,3411.1,0.1]
[1721380230194,2.93151,3411.2,3411.1,0.1]
[1721380230731,5.86302,3411.2,3411.1,0.1]
[1721380232937,2.93151,3411.2,3411.1,0.1]
[1721380233142,5.532961,3411.2,3411.1,0.1]
[1721380233715,11.395981,3411.2,3411.1,0.1]
[1721380234143,8.464471,3411.2,3411.1,0.1]
[1721380234640,11.395981,3411.2,3411.1,0.1]
[1721380234843,8.464471,3411.2,3411.1,0.1]
[1721380236007,11.395981,3411.2,3411.1,0.1]
[1721380238825,16.856491,3411.2,3411.1,0.1]
[1721380239025,16.856491,3411.2,3409.5,2.3306]
[1721380239026,2.9324,3410.2,3409.5,2.3306]
[1721380239249,2.4933,3410.5,3409.5,2.3306]
[1721380239250,2.93263,3409.9,3409.5,2.3306]
[1721380239415,2.93263,3409.9,3409.1,2.93325]
[1721380239416,2.93277,3409.8,3409.1,5.26385]
[1721380239615,2.93277,3409.8,3409.4,2.529]
[1721380239849,2.93277,3409.8,3409.1,5.26385]
[1721380241045,2.93282,3409.7,3409.1,5.26385]
[1721380241316,2.93282,3409.7,3409.1,2.3306]
[1721380241527,0.24933,3410.4,3408.8,2.529]
[1721380241528,2.93321,3409.3,3408.9,3.0]
[1721380245423,2.93321,3409.3,3408.7,2.3931]
[1721380245643,2.93341,3409.0,3408.9,2.529]
[1721380245856,2.93349,3408.9,3408.3,2.4799]
[1721380246043,2.93349,3408.9,3408.4,0.794295]
[1721380246359,2.93349,3408.9,3408.3,2.4799]
[1721380246561,2.93349,3408.9,3408.8,2.529]
[1721380246870,2.93349,3408.9,3408.3,5.41391]
[1721380247319,2.93332,3409.1,3408.4,2.529]
[1721380247665,5.86672,3409.1,3409.0,2.529]
[1721380247837,2.4295,3408.3,3406.9,0.45988244]
[1721380248038,2.93392,3408.4,3407.0,2.99381888]
[1721380248259,2.3629,3408.7,3407.6,2.529]
[1721380248260,5.29664,3408.7,3407.6,2.529]
[1721380248455,2.93436,3407.9,3407.6,2.529]
[1721380248653,2.93375,3408.6,3407.6,2.529]
[1721380248654,2.93418,3408.1,3407.6,2.529]
[1721380248838,2.93429,3408.0,3407.6,2.529]
[1721380250641,2.93411,3408.2,3407.6,2.529]
[1721380250857,2.2547,3408.1,3407.1,5.529]
[1721380251168,2.93485,3407.4,3406.6,5.46446]
[1721380251541,2.9345,3407.8,3406.6,2.529]
[1721380251756,2.93491,3407.3,3406.6,2.529]
[1721380252056,2.93491,3407.3,3406.6,3.075464]
[1721380252430,2.93462,3407.6,3407.0,2.529]
[1721380252688,2.93442,3407.9,3407.0,2.529]
[1721380252855,2.93401,3408.3,3407.5,2.93467]
[1721380253039,2.93401,3408.3,3407.4,2.529]
[1721380253231,2.93401,3408.3,3407.4,5.46371]
[1721380253428,2.93401,3408.3,3407.5,2.93469]
[1721380253826,2.93401,3408.3,3407.6,2.9346]
[1721380254524,2.93386,3408.5,3407.6,2.9346]
[1721380254730,2.93393,3408.4,3407.6,2.9346]
[1721380255033,2.93405,3408.3,3407.4,6.603645]
[1721380255332,2.93402,3408.3,3407.6,2.9346]
[1721380256432,2.93411,3408.2,3407.4,5.46373]
[1721380256971,0.817921,3408.4,3407.5,2.93464]
[1721380256972,3.751891,3408.4,3407.5,2.93464]
[1721380257145,2.93402,3408.3,3407.5,2.93464]
[1721380257348,2.93402,3408.3,3407.6,2.9346]
[1721380257549,0.817921,3408.4,3407.7,2.93448]
[1721380258182,3.751861,3408.4,3407.7,2.93448]
[1721380258771,2.93402,3408.3,3407.5,2.93469]
[1721380259347,3.6025991,3408.3,3407.5,2.93469]
[1721380260181,0.6685791,3408.3,3407.4,2.529]
[1721380260604,2.93376,3408.6,3407.6,2.93455]
[1721380261180,2.93422,3408.1,3407.4,2.529]
[1721380261383,2.3218099,3408.1,3407.4,2.529]
[1721380262474,2.93437,3407.9,3407.4,2.529]
[1721380262993,2.93451,3407.8,3407.1,3.0]